Workbook

Sheet (2)
A1: Car | B1: Size | C1: Cylinders | D1: City MPG | E1: Highway MPG | F1: Fuel | H1: Scales of Measurement
A2: Audu A8 | B2: Large | C2: 12 | D2: 13 | E2: 19 | F2: Premium | H2: Nominal
A3: BMW 328 Xi | B3: Compact | C3: 6 | D3: 17 | E3: 25 | F3: Premium | H3: Ordinal
A4: Cadillac CTS | B4: Midsized | C4: 6 | D4: 16 | E4: 25 | F4: Regular | H4: Interval
A5: Chrysler 300 | B5: Large | C5: 8 | D5: 13 | E5: 18 | F5: Premium | H5: Ratio
A6: Ford Focus | B6: Compact | C6: 4 | D6: 24 | E6: 33 | F6: Regular
A7: Hyundai Elantra | B7: Midsized | C7: 4 | D7: 25 | E7: 33 | F7: Regular
A8: Jeep Grand Cherokee | B8: Midsized | C8: 6 | D8: 17 | E8: 26 | F8: Diesel
A9: Pontiac G6 | B9: Compact | C9: 6 | D9: 15 | E9: 22 | F9: Regular
A10: Toyota Camry | B10: Midsized | C10: 4 | D10: 21 | E10: 31 | F10: Regular
A11: VW Jetta | B11: Compact | C11: 5 | D11: 21 | E11: 29 | F11: Regular
A13: a | B13: =COUNTA(A2:A11) -> 10 | C13: Elements or Primary Keys
A14: b | B14: =COUNTA(B1:F1) -> 5 | C14: Variables
A16: c | B16: =TRANSPOSE(B1:F1) -> Size | C16: Categorical
B17: Cylinders | C17: Quantitative
B18: City MPG | C18: Quantitative
B19: Highway MPG | C19: Quantitative
B20: Fuel | C20: Categorical
A22: d | B22: =TRANSPOSE(B1:F1) -> Size | C22: Ordinal
B23: Cylinders | C23: Ratio
B24: City MPG | C24: Ratio
B25: Highway MPG | C25: Ratio
B26: Fuel | C26: Nominal

Sheet (3)
A1: Car | B1: Size | C1: Cylinders | D1: City MPG | E1: Highway MPG | F1: Fuel | H1: Scales of Measurement
A2: Audu A8 | B2: Large | C2: 12 | D2: 13 | E2: 19 | F2: Premium | H2: Nominal
A3: BMW 328 Xi | B3: Compact | C3: 6 | D3: 17 | E3: 25 | F3: Premium | H3: Ordinal
A4: Cadillac CTS | B4: Midsized | C4: 6 | D4: 16 | E4: 25 | F4: Regular | H4: Interval
A5: Chrysler 300 | B5: Large | C5: 8 | D5: 13 | E5: 18 | F5: Premium | H5: Ratio
A6: Ford Focus | B6: Compact | C6: 4 | D6: 24 | E6: 33 | F6: Regular
A7: Hyundai Elantra | B7: Midsized | C7: 4 | D7: 25 | E7: 33 | F7: Regular
A8: Jeep Grand Cherokee | B8: Midsized | C8: 6 | D8: 17 | E8: 26 | F8: Diesel
A9: Pontiac G6 | B9: Compact | C9: 6 | D9: 15 | E9: 22 | F9: Regular
A10: Toyota Camry | B10: Midsized | C10: 4 | D10: 21 | E10: 31 | F10: Regular
A11: VW Jetta | B11: Compact | C11: 5 | D11: 21 | E11: 29 | F11: Regular
A13: a | B13: =AVERAGE(D2:D11) -> 18.2 | C13: ="Average for "&D1 -> Average for City MPG
B14: =AVERAGE(E2:E11) -> 26.1 | C14: ="Average for "&E1 -> Average for Highway MPG
A15: b | B15: =B14-B13 -> 7.9 | C15: ="The difference between "&C13&" and "&C14 -> The difference between Average for City MPG and Average for Highway MPG
A16: c | B16: Criteria: | C16: 4 | D16: =C1 -> Cylinders
B17: ="# cars with "&C16&" "&D16 -> # cars with 4 Cylinders | C17: =COUNTIF(C2:C11,C16) -> 3
B18: Total Cars | C18: =COUNTA(A2:A11) -> 10 | F18: Check
B19: ="Percentage Cars that have "&C16&" "&D16 -> Percentage Cars that have 4 Cylinders | C19: =C17/C18 -> 0.3 | F19: =COUNTIF(C2:C11,C16)/COUNT(C2:C11) -> 0.3
A20: d | B20: Criteria: | C20: regular | D20: =F1 -> Fuel
B21: ="# cars with "&C20&" "&D20 -> # cars with regular Fuel | C21: =COUNTIF(F2:F11,C20) -> 6
B22: Total Cars | C22: =COUNTA(A2:A11) -> 10 | F22: Check
B23: ="Percentage Cars that have "&C20&" "&D20 -> Percentage Cars that have regular Fuel | C23: =C21/C22 -> 0.6 | F23: =COUNTIF(F2:F11,C20)/COUNTA(F2:F11) -> 0.6

Sheet (4)
A1: School | B1: State | C1: Campus Setting | D1: Endowment ($B) | E1: % Applicants Admitted | F1: NCAA Division | H1: Scales of Measurement
A2: Amherst | B2: Massachusetts | C2: Town: Fringe | D2: 1.7 | E2: 0.18 | F2: III | H2: Nominal
A3: Duke | B3: North Carolina | C3: City: Midsized | D3: 5.9 | E3: 0.21 | F3: I-A | H3: Ordinal
A4: Harvard | B4: Massachusetts | C4: City: Midsized | D4: 34.6 | E4: 0.09 | F4: I-AA | H4: Interval
A5: Swathmore | B5: Pennsylvania | C5: Suburb: Large | D5: 1.4 | E5: 0.18 | F5: III | H5: Ratio
A6: U of P | B6: Pennsylvania | C6: City: Large | D6: 6.6 | E6: 0.18 | F6: I-AA
A7: Williams | B7: Massachusetts | C7: Town: Fringe | D7: 1.9 | E7: 0.18 | F7: III
A8: Yale | B8: Connecticut | C8: City: Midsized | D8: 22.5 | E8: 0.09 | F8: I-AA
A10: a | B10: =COUNTA(A2:A8) -> 7 | C10: Elements (Primary Key)
A11: b | B11: =COUNTA(B1:F1) -> 5 | C11: Variables
A12: c | B12: =TRANSPOSE(B1:F1) -> State | C12: Categorical | D12: Nominal
B13: Campus Setting | C13: Categorical | D13: Nominal
B14: Endowment ($B) | C14: Quantitative | D14: Ratio
B15: % Applicants Admitted | C15: Quantitative | D15: Ratio
B16: NCAA Division | C16: Categorical | D16: Ordinal

Sheet (5)
A1: School | B1: State | C1: Campus Setting | D1: Endowment ($B) | E1: % Applicants Admitted | F1: NCAA Division
A2: Amherst | B2: Massachusetts | C2: Town: Fringe | D2: 1.7 | E2: 0.18 | F2: III
A3: Duke | B3: North Carolina | C3: City: Midsized | D3: 5.9 | E3: 0.21 | F3: I-A
A4: Harvard | B4: Massachusetts | C4: City: Midsized | D4: 34.6 | E4: 0.09 | F4: I-AA
A5: Swathmore | B5: Pennsylvania | C5: Suburb: Large | D5: 1.4 | E5: 0.18 | F5: III
A6: U of P | B6: Pennsylvania | C6: City: Large | D6: 6.6 | E6: 0.18 | F6: I-AA
A7: Williams | B7: Massachusetts | C7: Town: Fringe | D7: 1.9 | E7: 0.18 | F7: III
A8: Yale | B8: Connecticut | C8: City: Midsized | D8: 22.5 | E8: 0.09 | F8: I-AA
A10: a | B10: =AVERAGE(D2:D8) -> 10.65714286 | C10: ="Average "&D1 -> Average Endowment ($B)
A11: b | B11: =AVERAGE(E2:E8) -> 0.1585714286 | C11: ="Average "&E1 -> Average % Applicants Admitted
A13: c | B13: =COUNTIF(F2:F8,E13) -> 3 | C13: ="# Schools with "&E13 -> # Schools with III | D13: Criteria: | E13: III
B14: =COUNTA(F2:F8) -> 7 | C14: Total Schools | G14: Check:
B15: =B13/B14 -> 0.4285714286 | C15: ="% Schools with "&E13 -> % Schools with III | G15: =COUNTIF(F2:F8,E13)/COUNTA(F2:F8) -> 0.4285714286
A17: d | B17: =COUNTIF(C2:C8,E17) -> 3 | C17: ="# Schools with "&E17 -> # Schools with City: Midsized | D17: Criteria: | E17: City: Midsized
B18: =COUNTA(C2:C8) -> 7 | C18: Total Schools | G18: Check:
B19: =B17/B18 -> 0.4285714286 | C19: ="% Schools with "&E17 -> % Schools with City: Midsized | G19: =COUNTIF(C2:C8,E17)/COUNTA(C2:C8) -> 0.4285714286

Sheet (10)
A1: Quote: "Drivers of motor vehicles should be allowed to talk on a hand-held cell phone while driving"
B2: Frequency | C2: Relative Frequency | D2: Percent Frequency
A3: Strongly Agree | B3: 44 | C3: =B3/$B$7 -> 0.04074074074 | D3: =C3 -> 0.04074074074
A4: Somewhat Agree | B4: 130 | C4: =B4/$B$7 -> 0.1203703704 | D4: 0.1203703704
A5: Somewhat disagree | B5: 165 | C5: 0.1527777778 | D5: 0.1527777778
A6: Strongly disagree | B6: 741 | C6: 0.6861111111 | D6: 0.6861111111
A7: Total | B7: =SUM(B3:B6) -> 1080 | C7: =SUM(C3:C6) -> 1 | D7: 1
A9: a | B9: Categorical and Ordinal
A10: b | B10: Percentages
A11: c | B11: =D3 -> 0.04074074074
A12: d | B12: =" Against = "&TEXT(D5,"0.000%")&" + "&TEXT(D6,"0.000%")&" = "&TEXT(D5+D6,"0.000%") -> Against = 15.278% + 68.611% = 83.889%

Sheet (14)
A1: Global Auto Production of Autos
B2: 2004 | C2: 2005 | D2: 2006 | E2: 2007 | G2: a
A3: GM | B3: 8900000 | C3: 9000000 | D3: 8900000 | E3: 8800000
A4: Ford | B4: 7800000 | C4: 7700000 | D4: 7800000 | E4: 7900000
A5: DC | B5: 4100000 | C5: 4200000 | D5: 4300000 | E5: 4600000
A6: Toyota | B6: 7800000 | C6: 8300000 | D6: 9100000 | E6: 9600000
G17: b | H17: GM is no longer the industry leader. Toyota is passing. In addition GM is the only one to show a downward trend.
G18: c

Sheet (17)
A1: 17 | B1: Internal data on salaries of other employees can be obtained from the personnel department. External data might be obtained from the Department of Labor or industry associations.

Sheet (24)
A1: 24 | B1: a | C1: This is a statistically correct descriptive statistic for the sample.
B2: b | C2: An incorrect generalization since the data was not collected for the entire population.
B3: c | C3: An acceptable statistical inference based on the use of the word “estimate.”
B4: d | C4: While this statement is true for the sample, it is not a justifiable conclusion for the entire population.
B5: e | C5: This statement is not statistically supportable. While it is true for the particular sample observed, it is entirely possible and even very likely that at least some students will be outside the 65 to 90 range of grades.
